[Event "*** Titled Tuesday Blitz"]
[Site "Chess.com"]
[Date "2019.04.02"]
[Round "1"]
[White "Annawel"]
[Black "SloLev"]
[Result "1-0"]
[WhiteElo "2892"]
[BlackElo "2485"]
[TimeControl "180+2"]
[EndTime "14:08:34 PDT"]
[Termination "Annawel won by resignation"]

1. e4 {[%clk 0:02:58.3]} 1... e5 {[%clk 0:02:59.2]} 2. Nf3 {[%clk 0:02:56.8]}
2... Nc6 {[%clk 0:02:57.1]} 3. Bb5 {[%clk 0:02:56.6]} 3... Nge7 {[%clk
0:02:57.6]} 4. O-O {[%clk 0:02:52.4]} 4... g6 {[%clk 0:02:55.9]} 5. c3 {[%clk
0:02:47]} 5... a6 {[%clk 0:02:53.7]} 6. Ba4 {[%clk 0:02:47.1]} 6... Bg7 {[%clk
0:02:54.1]} 7. d4 {[%clk 0:02:48.1]} 7... exd4 {[%clk 0:02:56]} 8. cxd4 {[%clk
0:02:49.7]} 8... b5 {[%clk 0:02:57]} 9. Bb3 {[%clk 0:02:50.4]} 9... O-O {[%clk
0:02:57.7]} 10. Nc3 {[%clk 0:02:39.5]} 10... d6 {[%clk 0:02:55.4]} 11. h3 {[%clk
0:02:39.9]} 11... Na5 {[%clk 0:02:54.3]} 12. Bc2 {[%clk 0:02:40.5]} 12... c5
{[%clk 0:02:38.8]} 13. Bg5 {[%clk 0:02:40]} 13... h6 {[%clk 0:02:37.1]} 14. Bh4
{[%clk 0:02:41.4]} 14... g5 {[%clk 0:02:19.3]} 15. Bg3 {[%clk 0:02:42.2]} 15...
Nc4 {[%clk 0:01:27.8]} 16. b3 {[%clk 0:02:35.4]} 16... Na3 {[%clk 0:01:26.6]}
17. Rc1 {[%clk 0:01:55.5]} 17... Nxc2 {[%clk 0:01:20.2]} 18. Rxc2 {[%clk
0:01:57.4]} 18... Qb6 {[%clk 0:01:13.1]} 19. dxc5 {[%clk 0:01:52.8]} 19... dxc5
{[%clk 0:01:15]} 20. Qd6 {[%clk 0:01:51.9]} 20... Qa7 {[%clk 0:01:10]} 21. Nd5
{[%clk 0:01:34.5]} 21... Nxd5 {[%clk 0:01:06.7]} 22. exd5 {[%clk 0:01:31.1]}
22... c4 {[%clk 0:01:00.7]} 23. Be5 {[%clk 0:01:18.9]} 23... Bf5 {[%clk
0:00:48]} 24. Bxg7 {[%clk 0:01:07.8]} 24... Kxg7 {[%clk 0:00:42.8]} 25. Rcc1
{[%clk 0:01:08.9]} 25... Rfe8 {[%clk 0:00:34.9]} 26. bxc4 {[%clk 0:01:01.5]}
26... Bd3 {[%clk 0:00:36]} 27. Rfe1 {[%clk 0:00:57.1]} 27... bxc4 {[%clk
0:00:36.3]} 28. Qc6 {[%clk 0:00:36.6]} 28... Rxe1+ {[%clk 0:00:27]} 29. Rxe1
{[%clk 0:00:38.5]} 29... Rd8 {[%clk 0:00:25.9]} 30. Ne5 {[%clk 0:00:36.6]} 30...
Qd4 {[%clk 0:00:21.4]} 31. Nxf7 {[%clk 0:00:34.7]} 31... Rf8 {[%clk 0:00:07.7]}
32. Qxh6+ {[%clk 0:00:24.1]} 32... Kxf7 {[%clk 0:00:08.3]} 33. Qxg5 {[%clk
0:00:16.2]} 33... Qf6 {[%clk 0:00:05.6]} 34. Qg4 {[%clk 0:00:17.5]} 34... Qf5
{[%clk 0:00:04.9]} 35. Qd4 {[%clk 0:00:16.5]} 35... Kg6 {[%clk 0:00:05.4]} 36.
Re6+ {[%clk 0:00:16.8]} 36... Kh7 {[%clk 0:00:05.8]} 37. Re5 {[%clk 0:00:16.9]}
37... Qf4 {[%clk 0:00:05.3]} 38. Re7+ {[%clk 0:00:16.8]} 38... Rf7 {[%clk
0:00:05.8]} 39. Qxf4 {[%clk 0:00:17.8]} 1-0

[Event "*** Titled Tuesday Blitz"]
[Site "Chess.com"]
[Date "2019.04.02"]
[Round "1"]
[White "rasmussvane"]
[Black "PotapovaM"]
[Result "1-0"]
[WhiteElo "2770"]
[BlackElo "2433"]
[TimeControl "180+2"]
[EndTime "14:08:34 PDT"]
[Termination "rasmussvane won by resignation"]

1. Nf3 {[%clk 0:03:01.9]} 1... Nf6 {[%clk 0:03:00.6]} 2. c4 {[%clk 0:03:01.3]}
2... e6 {[%clk 0:03:01.3]} 3. g3 {[%clk 0:03:01.9]} 3... d5 {[%clk 0:03:02.6]}
4. Bg2 {[%clk 0:03:03.4]} 4... d4 {[%clk 0:03:02.9]} 5. O-O {[%clk 0:03:04]}
5... c5 {[%clk 0:03:04]} 6. e3 {[%clk 0:03:03]} 6... Nc6 {[%clk 0:03:04.8]} 7.
exd4 {[%clk 0:03:04.5]} 7... cxd4 {[%clk 0:03:06.7]} 8. d3 {[%clk 0:03:06.1]}
8... Be7 {[%clk 0:03:08]} 9. Bf4 {[%clk 0:03:00.6]} 9... O-O {[%clk 0:03:07.8]}
10. Re1 {[%clk 0:02:59.3]} 10... Ne8 {[%clk 0:03:04.2]} 11. Na3 {[%clk
0:02:55.1]} 11... f6 {[%clk 0:02:47.6]} 12. Rc1 {[%clk 0:02:55.8]} 12... e5
{[%clk 0:02:47.5]} 13. Bd2 {[%clk 0:02:57]} 13... Nc7 {[%clk 0:02:32.6]} 14. Qa4
{[%clk 0:02:50.7]} 14... Bf5 {[%clk 0:02:29.7]} 15. Nh4 {[%clk 0:02:47.6]} 15...
Bd7 {[%clk 0:01:52.2]} 16. c5 {[%clk 0:02:35.2]} 16... Kh8 {[%clk 0:01:48.9]}
17. b4 {[%clk 0:02:32.5]} 17... g5 {[%clk 0:01:17.2]} 18. Nf3 {[%clk 0:02:32.2]}
18... Nd5 {[%clk 0:01:06]} 19. b5 {[%clk 0:02:26.8]} 19... Nb8 {[%clk
0:01:06.7]} 20. Nxd4 {[%clk 0:02:05.1]} 20... Bg4 {[%clk 0:00:48.1]} 21. Nb3
{[%clk 0:01:58.4]} 21... Be6 {[%clk 0:00:43.9]} 22. d4 {[%clk 0:01:53.8]} 22...
Bf7 {[%clk 0:00:39]} 23. dxe5 {[%clk 0:01:49.8]} 23... fxe5 {[%clk 0:00:40.9]}
24. Nc4 {[%clk 0:01:50.5]} 24... Bf6 {[%clk 0:00:32.7]} 25. Nxe5 {[%clk
0:01:49.7]} 25... Bg8 {[%clk 0:00:34.3]} 26. c6 {[%clk 0:01:45.5]} 26... bxc6
{[%clk 0:00:34.9]} 27. bxc6 {[%clk 0:01:45.5]} 27... Qc7 {[%clk 0:00:31.7]} 28.
Ng4 {[%clk 0:01:38.4]} 28... Bg7 {[%clk 0:00:30.9]} 29. Bxg5 {[%clk 0:01:38.5]}
29... Nb6 {[%clk 0:00:24.9]} 30. Qa5 {[%clk 0:01:21.8]} 30... Rf7 {[%clk
0:00:15.4]} 31. Nh6 {[%clk 0:01:16.3]} 31... Rf8 {[%clk 0:00:03.3]} 32. Nxg8
{[%clk 0:01:10.2]} 32... Kxg8 {[%clk 0:00:03.8]} 33. Re7 {[%clk 0:01:11.2]}
33... Qd6 {[%clk 0:00:04.9]} 34. c7 {[%clk 0:01:10.2]} 34... N8d7 {[%clk
0:00:06.2]} 35. Bxa8 {[%clk 0:01:08.8]} 35... Rxa8 {[%clk 0:00:08.1]} 36. Qf5
{[%clk 0:01:07.5]} 36... Rf8 {[%clk 0:00:07.1]} 37. Qe6+ {[%clk 0:01:05.7]}
37... Qxe6 {[%clk 0:00:07.4]} 38. Rxe6 {[%clk 0:01:07.6]} 38... Rc8 {[%clk
0:00:07.2]} 39. Na5 {[%clk 0:01:02.5]} 39... Nd5 {[%clk 0:00:07.6]} 40. Bd8
{[%clk 0:00:58.2]} 40... Ne5 {[%clk 0:00:07.6]} 41. Nb7 {[%clk 0:00:52.1]} 41...
Nf7 {[%clk 0:00:07]} 42. Nd6 {[%clk 0:00:47]} 42... Nxd8 {[%clk 0:00:08]} 43.
Re8+ {[%clk 0:00:41.8]} 43... Bf8 {[%clk 0:00:09]} 44. cxd8=Q {[%clk 0:00:39.6]}
1-0

[Event "*** Titled Tuesday Blitz"]
[Site "Chess.com"]
[Date "2019.04.02"]
[Round "1"]
[White "Hikaru"]
[Black "gmjoey1"]
[Result "1-0"]
[WhiteElo "3185"]
[BlackElo "2503"]
[TimeControl "180+2"]
[EndTime "14:08:37 PDT"]
[Termination "Hikaru won by resignation"]

1. Nf3 {[%clk 0:02:59.5]} 1... Nf6 {[%clk 0:02:59.8]} 2. b3 {[%clk 0:02:57.2]}
2... g6 {[%clk 0:02:58.4]} 3. Bb2 {[%clk 0:02:56.8]} 3... Bg7 {[%clk 0:02:59]}
4. d4 {[%clk 0:02:58.7]} 4... O-O {[%clk 0:02:58.6]} 5. e3 {[%clk 0:03:00.3]}
5... c5 {[%clk 0:02:57.8]} 6. dxc5 {[%clk 0:03:01.2]} 6... Qa5+ {[%clk
0:02:54.2]} 7. c3 {[%clk 0:03:02.6]} 7... Qxc5 {[%clk 0:02:49.5]} 8. Ba3 {[%clk
0:03:03.2]} 8... Qb6 {[%clk 0:02:39.6]} 9. Bxe7 {[%clk 0:03:04]} 9... Re8 {[%clk
0:02:40]} 10. Bxf6 {[%clk 0:03:05.4]} 10... Bxf6 {[%clk 0:02:36.3]} 11. Be2
{[%clk 0:03:07.3]} 11... d5 {[%clk 0:02:27.7]} 12. O-O {[%clk 0:03:07.1]} 12...
Nc6 {[%clk 0:02:28.1]} 13. Nd4 {[%clk 0:03:07.8]} 13... Bd7 {[%clk 0:02:16.7]}
14. Nd2 {[%clk 0:03:01.8]} 14... Nxd4 {[%clk 0:02:07.8]} 15. cxd4 {[%clk
0:03:02.3]} 15... Rac8 {[%clk 0:02:08.2]} 16. Nf3 {[%clk 0:02:47.5]} 16... Qa5
{[%clk 0:02:03.5]} 17. Bd3 {[%clk 0:02:45.2]} 17... Be7 {[%clk 0:01:48]} 18. Qe2
{[%clk 0:02:24.4]} 18... Ba3 {[%clk 0:01:45.9]} 19. h3 {[%clk 0:02:25.3]} 19...
Rc7 {[%clk 0:01:42.4]} 20. Rad1 {[%clk 0:02:23.3]} 20... a6 {[%clk 0:01:39.8]}
21. Rd2 {[%clk 0:02:22.7]} 21... Rec8 {[%clk 0:01:36]} 22. Rc2 {[%clk 0:02:22]}
22... Rxc2 {[%clk 0:01:33.4]} 23. Bxc2 {[%clk 0:02:23.9]} 23... f6 {[%clk
0:01:31.6]} 24. Bd3 {[%clk 0:02:23.3]} 24... Rc3 {[%clk 0:01:27.7]} 25. Rd1
{[%clk 0:02:20.1]} 25... Kg7 {[%clk 0:01:23.4]} 26. Ne1 {[%clk 0:02:16.4]} 26...
Bd6 {[%clk 0:01:18.5]} 27. Qd2 {[%clk 0:02:12.8]} 27... Bb4 {[%clk 0:01:13.4]}
28. Qe2 {[%clk 0:02:03.9]} 28... Qc7 {[%clk 0:01:12.5]} 29. Nc2 {[%clk
0:02:02.9]} 29... Bd6 {[%clk 0:01:11.3]} 30. Ne1 {[%clk 0:01:58.8]} 30... a5
{[%clk 0:01:05.8]} 31. e4 {[%clk 0:01:55.8]} 31... dxe4 {[%clk 0:01:04.3]} 32.
Bxe4 {[%clk 0:01:57.7]} 32... a4 {[%clk 0:01:01.6]} 33. Bd5 {[%clk 0:01:54.5]}
33... a3 {[%clk 0:00:56.5]} 34. Bc4 {[%clk 0:01:50.2]} 34... Bf5 {[%clk
0:00:49.8]} 35. Bd3 {[%clk 0:01:38.9]} 35... Bd7 {[%clk 0:00:43.4]} 36. Nf3
{[%clk 0:01:40]} 36... Bf4 {[%clk 0:00:40.8]} 37. Qe7+ {[%clk 0:01:32.8]} 37...
Kg8 {[%clk 0:00:38.6]} 38. Bc4+ {[%clk 0:01:32.6]} 38... Rxc4 {[%clk 0:00:39.1]}
39. bxc4 {[%clk 0:01:34.5]} 39... Bf5 {[%clk 0:00:27.1]} 40. Qxc7 {[%clk
0:01:34.8]} 40... Bxc7 {[%clk 0:00:29]} 41. d5 {[%clk 0:01:33.9]} 41... Kf7
{[%clk 0:00:20]} 42. Nd4 {[%clk 0:01:31.1]} 42... Bd7 {[%clk 0:00:19.5]} 43. Rb1
{[%clk 0:01:30.3]} 43... b6 {[%clk 0:00:19.9]} 44. c5 {[%clk 0:01:29.8]} 44...
bxc5 {[%clk 0:00:17.8]} 45. Rb7 {[%clk 0:01:29.2]} 45... cxd4 {[%clk 0:00:18.4]}
46. Rxc7 {[%clk 0:01:30.5]} 46... Ke7 {[%clk 0:00:20.3]} 47. Ra7 {[%clk
0:01:31.3]} 47... Kd6 {[%clk 0:00:21.6]} 48. Rxa3 {[%clk 0:01:32]} 48... Kxd5
{[%clk 0:00:23.1]} 49. Kf1 {[%clk 0:01:32.8]} 49... Kc4 {[%clk 0:00:22.4]} 50.
Ke1 {[%clk 0:01:33.6]} 50... Kb4 {[%clk 0:00:23.2]} 51. Ra7 {[%clk 0:01:34.2]}
51... Be6 {[%clk 0:00:21.3]} 52. Rxh7 {[%clk 0:01:34.8]} 52... Kc3 {[%clk
0:00:21.1]} 53. a4 {[%clk 0:01:34.2]} 53... d3 {[%clk 0:00:21.7]} 54. Rc7+
{[%clk 0:01:34.9]} 54... Bc4 {[%clk 0:00:22.5]} 55. h4 {[%clk 0:01:34.8]} 55...
f5 {[%clk 0:00:18.1]} 56. g3 {[%clk 0:01:35.4]} 56... Kb4 {[%clk 0:00:15.4]} 57.
Rxc4+ {[%clk 0:01:34.8]} 57... Kxc4 {[%clk 0:00:15.5]} 58. f3 {[%clk 0:01:36.5]}
58... Kb4 {[%clk 0:00:16.3]} 59. g4 {[%clk 0:01:36.1]} 59... Kc3 {[%clk
0:00:18.2]} 60. Kd1 {[%clk 0:01:37]} 60... f4 {[%clk 0:00:17]} 61. a5 {[%clk
0:01:36.7]} 61... Kd4 {[%clk 0:00:18.9]} 1-0

[Event "*** Titled Tuesday Blitz"]
[Site "Chess.com"]
[Date "2019.04.02"]
[Round "1"]
[White "Micki-taryan"]
[Black "pedromartinez91"]
[Result "1-0"]
[WhiteElo "2954"]
[BlackElo "2497"]
[TimeControl "180+2"]
[EndTime "14:08:37 PDT"]
[Termination "Micki-taryan won by checkmate"]

1. e4 {[%clk 0:03:00]} 1... e6 {[%clk 0:03:00.5]} 2. d4 {[%clk 0:02:58.1]} 2...
d5 {[%clk 0:03:01.2]} 3. Nd2 {[%clk 0:02:56.5]} 3... Nf6 {[%clk 0:03:01.3]} 4.
e5 {[%clk 0:02:56.1]} 4... Nfd7 {[%clk 0:03:02.5]} 5. c3 {[%clk 0:02:54.6]} 5...
c5 {[%clk 0:03:03.4]} 6. Ngf3 {[%clk 0:02:54.9]} 6... Nc6 {[%clk 0:03:04.3]} 7.
Be2 {[%clk 0:02:51.8]} 7... g6 {[%clk 0:03:04.6]} 8. O-O {[%clk 0:02:51.7]} 8...
Bg7 {[%clk 0:03:02.9]} 9. Re1 {[%clk 0:02:40.3]} 9... h6 {[%clk 0:03:02.5]} 10.
Nf1 {[%clk 0:02:38.3]} 10... O-O {[%clk 0:03:02]} 11. Be3 {[%clk 0:02:37.3]}
11... Kh7 {[%clk 0:02:59.5]} 12. Ng3 {[%clk 0:02:37.7]} 12... f5 {[%clk
0:02:09.1]} 13. exf6 {[%clk 0:02:39.6]} 13... Qxf6 {[%clk 0:02:10]} 14. dxc5
{[%clk 0:02:36.4]} 14... Nde5 {[%clk 0:02:02.3]} 15. Nxe5 {[%clk 0:02:32.5]}
15... Nxe5 {[%clk 0:02:01.2]} 16. f4 {[%clk 0:02:33.3]} 16... Nc6 {[%clk
0:01:58.9]} 17. Bd3 {[%clk 0:02:32.5]} 17... Qh4 {[%clk 0:01:51.7]} 18. Qc2
{[%clk 0:02:26.9]} 18... Ne7 {[%clk 0:01:52.5]} 19. b4 {[%clk 0:02:12.5]} 19...
Bd7 {[%clk 0:01:52.4]} 20. a4 {[%clk 0:02:10.5]} 20... Nf5 {[%clk 0:01:41.3]}
21. Bxf5 {[%clk 0:02:08.9]} 21... gxf5 {[%clk 0:01:40.1]} 22. Qd2 {[%clk
0:02:07.5]} 22... Rg8 {[%clk 0:01:31.7]} 23. Bd4 {[%clk 0:02:08.1]} 23... Bxd4+
{[%clk 0:01:28]} 24. cxd4 {[%clk 0:02:06.6]} 24... Rg4 {[%clk 0:01:28.5]} 25.
Rf1 {[%clk 0:02:06.3]} 25... Rag8 {[%clk 0:01:28.8]} 26. Ra3 {[%clk 0:02:07.9]}
26... h5 {[%clk 0:01:18.1]} 27. Rf2 {[%clk 0:02:09.1]} 27... Kh6 {[%clk
0:01:18.9]} 28. b5 {[%clk 0:02:09]} 28... Qe7 {[%clk 0:01:17.9]} 29. Nf1 {[%clk
0:02:09.5]} 29... h4 {[%clk 0:01:10]} 30. h3 {[%clk 0:02:10.7]} 30... R4g6
{[%clk 0:01:08]} 31. Qe3 {[%clk 0:02:11.4]} 31... Qg7 {[%clk 0:01:06.7]} 32.
Raa2 {[%clk 0:02:12.9]} 32... Kh7 {[%clk 0:01:01.2]} 33. Qe5 {[%clk 0:02:11.4]}
33... Qe7 {[%clk 0:00:56.8]} 34. Rac2 {[%clk 0:02:12.3]} 34... Qe8 {[%clk
0:00:56.3]} 35. Kh2 {[%clk 0:02:11]} 35... R8g7 {[%clk 0:00:57]} 36. Rf3 {[%clk
0:02:12.2]} 36... Qg8 {[%clk 0:00:57.1]} 37. Rff2 {[%clk 0:02:12.7]} 37... Rg3
{[%clk 0:00:48.5]} 38. Qe2 {[%clk 0:02:11.5]} 38... Be8 {[%clk 0:00:34.2]} 39.
Rf3 {[%clk 0:02:04]} 39... Bh5 {[%clk 0:00:31.1]} 40. Nxg3 {[%clk 0:01:51.7]}
40... hxg3+ {[%clk 0:00:33]} 41. Kg1 {[%clk 0:01:51.7]} 41... Rg6 {[%clk
0:00:28.4]} 42. Qe3 {[%clk 0:01:51.2]} 42... Bxf3 {[%clk 0:00:28.6]} 43. Qxf3
{[%clk 0:01:53.1]} 43... Qg7 {[%clk 0:00:30]} 44. Qe3 {[%clk 0:01:53]} 44... Qc7
{[%clk 0:00:29.5]} 45. Kf1 {[%clk 0:01:53.2]} 45... Qa5 {[%clk 0:00:30.4]} 46.
Qb3 {[%clk 0:01:53.9]} 46... Qc7 {[%clk 0:00:29.2]} 47. Qe3 {[%clk 0:01:52.4]}
47... Qa5 {[%clk 0:00:30.1]} 48. c6 {[%clk 0:01:50.9]} 48... Qxa4 {[%clk
0:00:31.2]} 49. Qd3 {[%clk 0:01:46.1]} 49... Qa1+ {[%clk 0:00:27.3]} 50. Ke2
{[%clk 0:01:47.4]} 50... bxc6 {[%clk 0:00:26.1]} 51. bxc6 {[%clk 0:01:48.2]}
51... Qg1 {[%clk 0:00:25]} 52. Qf3 {[%clk 0:01:49.4]} 52... Rg8 {[%clk
0:00:04.9]} 53. c7 {[%clk 0:01:48.6]} 53... Qxd4 {[%clk 0:00:05.9]} 54. Qh5+
{[%clk 0:01:48.2]} 54... Kg7 {[%clk 0:00:07.2]} 55. Qg5+ {[%clk 0:01:49]} 55...
Kh7 {[%clk 0:00:08.6]} 56. Qh4+ {[%clk 0:01:50.3]} 56... Kg6 {[%clk 0:00:08.5]}
57. Qxg3+ {[%clk 0:01:52.2]} 57... Kf7 {[%clk 0:00:09]} 58. Qxg8+ {[%clk
0:01:52.8]} 58... Kxg8 {[%clk 0:00:10]} 59. c8=Q+ {[%clk 0:01:54.7]} 59... Kf7
{[%clk 0:00:11.9]} 60. Rc7+ {[%clk 0:01:55.7]} 60... Kg6 {[%clk 0:00:13.3]} 61.
Qg8+ {[%clk 0:01:56.8]} 61... Kh6 {[%clk 0:00:14.9]} 62. Qh7# {[%clk 0:01:57.8]}
1-0

[Event "*** Titled Tuesday Blitz"]
[Site "Chess.com"]
[Date "2019.04.02"]
[Round "1"]
[White "sofaceindisguise"]
[Black "51616516516"]
[Result "1-0"]
[WhiteElo "2551"]
[BlackElo "2204"]
[TimeControl "180+2"]
[EndTime "14:08:37 PDT"]
[Termination "sofaceindisguise won by checkmate"]

1. d4 {[%clk 0:03:01.1]} 1... Nf6 {[%clk 0:02:54.7]} 2. c4 {[%clk 0:03:01.9]}
2... g6 {[%clk 0:02:55.1]} 3. Nc3 {[%clk 0:03:02.6]} 3... Bg7 {[%clk 0:02:54.4]}
4. e4 {[%clk 0:03:03.5]} 4... d6 {[%clk 0:02:55.9]} 5. Nf3 {[%clk 0:03:03.9]}
5... O-O {[%clk 0:02:14.8]} 6. Be2 {[%clk 0:02:59.1]} 6... e5 {[%clk 0:02:13.3]}
7. O-O {[%clk 0:02:59.3]} 7... Nc6 {[%clk 0:02:09.6]} 8. d5 {[%clk 0:02:59.7]}
8... Ne7 {[%clk 0:02:07.7]} 9. b4 {[%clk 0:03:00.9]} 9... Nh5 {[%clk 0:01:54.5]}
10. Re1 {[%clk 0:03:01.2]} 10... f5 {[%clk 0:01:40.7]} 11. Ng5 {[%clk
0:02:58.9]} 11... Nf4 {[%clk 0:01:40.8]} 12. Bf1 {[%clk 0:02:52.6]} 12... h6
{[%clk 0:01:41.3]} 13. Nf3 {[%clk 0:02:45.3]} 13... fxe4 {[%clk 0:01:36.1]} 14.
Nxe4 {[%clk 0:02:25.4]} 14... Bg4 {[%clk 0:01:35.9]} 15. c5 {[%clk 0:01:27.3]}
15... Nh3+ {[%clk 0:01:09.7]} 16. Kh1 {[%clk 0:01:21.6]} 16... Bxf3 {[%clk
0:01:03.2]} 17. gxf3 {[%clk 0:01:19.8]} 17... Nf4 {[%clk 0:01:01.4]} 18. Be3
{[%clk 0:01:12.7]} 18... Nf5 {[%clk 0:01:01.5]} 19. Bxf4 {[%clk 0:01:11.9]}
19... exf4 {[%clk 0:01:01.9]} 20. Rc1 {[%clk 0:01:13.8]} 20... a5 {[%clk
0:00:57.1]} 21. b5 {[%clk 0:01:01.7]} 21... Re8 {[%clk 0:00:41.9]} 22. b6 {[%clk
0:00:54.7]} 22... cxb6 {[%clk 0:00:40]} 23. c6 {[%clk 0:00:52.8]} 23... bxc6
{[%clk 0:00:38.9]} 24. dxc6 {[%clk 0:00:53.4]} 24... Rc8 {[%clk 0:00:40.4]} 25.
Bc4+ {[%clk 0:00:53.6]} 25... Kh7 {[%clk 0:00:37.9]} 26. Bf7 {[%clk 0:00:54.2]}
26... Re7 {[%clk 0:00:36.3]} 27. Bd5 {[%clk 0:00:53.2]} 27... Nd4 {[%clk
0:00:30.6]} 28. Qd3 {[%clk 0:00:51.1]} 28... b5 {[%clk 0:00:26]} 29. Rg1 {[%clk
0:00:40]} 29... Nf5 {[%clk 0:00:21.6]} 30. Rxg6 {[%clk 0:00:29.2]} 30... Kxg6
{[%clk 0:00:20]} 31. Rg1+ {[%clk 0:00:30.7]} 31... Kh7 {[%clk 0:00:20]} 32. Nf6+
{[%clk 0:00:31.5]} 32... Kh8 {[%clk 0:00:11.5]} 33. Qxf5 {[%clk 0:00:33.4]}
33... Bxf6 {[%clk 0:00:05.4]} 34. Qxf6+ {[%clk 0:00:34]} 34... Kh7 {[%clk
0:00:06.9]} 35. Be4+ {[%clk 0:00:31.9]} 35... Rxe4 {[%clk 0:00:04.1]} 36. Qg7#
{[%clk 0:00:32.7]} 1-0

[Event "*** Titled Tuesday Blitz"]
[Site "Chess.com"]
[Date "2019.04.02"]
[Round "1"]
[White "regular_legs"]
[Black "moro182"]
[Result "1/2-1/2"]
[WhiteElo "2440"]
[BlackElo "2759"]
[TimeControl "180+2"]
[EndTime "14:08:40 PDT"]
[Termination "Game drawn by agreement"]

1. d4 {[%clk 0:02:57.2]} 1... d5 {[%clk 0:02:59.9]} 2. c4 {[%clk 0:02:58]} 2...
e6 {[%clk 0:03:00.5]} 3. Nc3 {[%clk 0:02:59.3]} 3... Nf6 {[%clk 0:03:00.6]} 4.
cxd5 {[%clk 0:03:00.3]} 4... exd5 {[%clk 0:03:01.1]} 5. Bg5 {[%clk 0:03:01.5]}
5... c6 {[%clk 0:03:01.9]} 6. e3 {[%clk 0:03:02.3]} 6... h6 {[%clk 0:03:03.6]}
7. Bh4 {[%clk 0:03:00.7]} 7... Be6 {[%clk 0:03:04.8]} 8. Bd3 {[%clk 0:03:00.8]}
8... Nbd7 {[%clk 0:03:06.2]} 9. Qc2 {[%clk 0:02:55.5]} 9... g5 {[%clk
0:03:06.9]} 10. Bg3 {[%clk 0:02:56.2]} 10... Nh5 {[%clk 0:03:08.4]} 11. Nge2
{[%clk 0:02:50.9]} 11... Nxg3 {[%clk 0:03:09.4]} 12. Nxg3 {[%clk 0:02:50.2]}
12... h5 {[%clk 0:03:10.7]} 13. h4 {[%clk 0:02:50]} 13... gxh4 {[%clk
0:03:08.5]} 14. Nf5 {[%clk 0:02:50.6]} 14... Qg5 {[%clk 0:03:01.6]} 15. Nxh4
{[%clk 0:02:46.9]} 15... Bg7 {[%clk 0:02:48.6]} 16. O-O-O {[%clk 0:02:46.5]}
16... Nb6 {[%clk 0:02:30.8]} 17. Kb1 {[%clk 0:02:43.2]} 17... O-O-O {[%clk
0:02:29.7]} 18. Rc1 {[%clk 0:02:25]} 18... Kb8 {[%clk 0:02:30.5]} 19. Na4 {[%clk
0:02:25.7]} 19... Nd7 {[%clk 0:02:04.6]} 20. g3 {[%clk 0:02:15]} 20... Bf8
{[%clk 0:01:56.2]} 21. f4 {[%clk 0:02:10.4]} 21... Qxg3 {[%clk 0:01:42.3]} 22.
f5 {[%clk 0:02:11.2]} 22... Qxe3 {[%clk 0:01:43.2]} 23. fxe6 {[%clk 0:02:10]}
23... fxe6 {[%clk 0:01:45.1]} 24. Ng6 {[%clk 0:02:04.4]} 24... Rg8 {[%clk
0:00:50.3]} 25. Nxf8 {[%clk 0:01:21.7]} 25... Rdxf8 {[%clk 0:00:52.2]} 26. Rxh5
{[%clk 0:01:22.1]} 26... Qxd4 {[%clk 0:00:51.5]} 27. Rh7 {[%clk 0:01:21.8]}
27... Rg7 {[%clk 0:00:52.1]} 28. Rxg7 {[%clk 0:01:13.8]} 28... Qxg7 {[%clk
0:00:54]} 29. Qb3 {[%clk 0:01:14.7]} 29... Ne5 {[%clk 0:00:51.7]} 30. Nc5 {[%clk
0:01:14.2]} 30... Nxd3 {[%clk 0:00:39.7]} 31. Qxd3 {[%clk 0:01:05.6]} 31... Qe7
{[%clk 0:00:41.1]} 32. Qe3 {[%clk 0:01:02.7]} 32... e5 {[%clk 0:00:41]} 33.
Qxe5+ {[%clk 0:01:01.9]} 33... Qxe5 {[%clk 0:00:42.9]} 34. Nd7+ {[%clk
0:01:02.6]} 34... Kc7 {[%clk 0:00:44.6]} 35. Nxe5 {[%clk 0:01:04.5]} 35... Kd6
{[%clk 0:00:45.5]} 36. Nd3 {[%clk 0:01:05.4]} 36... b6 {[%clk 0:00:46.1]} 37. b4
{[%clk 0:01:03.8]} 37... Rf3 {[%clk 0:00:46.1]} 38. Rxc6+ {[%clk 0:01:01.5]}
38... Kxc6 {[%clk 0:00:43]} 39. Ne5+ {[%clk 0:01:02.1]} 39... Kb5 {[%clk
0:00:44.9]} 40. Nxf3 {[%clk 0:01:03.2]} 40... Kxb4 {[%clk 0:00:46.8]} 41. Kb2
{[%clk 0:01:01.3]} 41... a5 {[%clk 0:00:47.6]} 42. Nd2 {[%clk 0:00:56.5]} 42...
b5 {[%clk 0:00:48.4]} 43. Nf3 {[%clk 0:00:44.9]} 43... Kc4 {[%clk 0:00:45.8]}
44. Ne5+ {[%clk 0:00:43]} 44... Kc5 {[%clk 0:00:47.1]} 45. Kc3 {[%clk
0:00:42.8]} 45... b4+ {[%clk 0:00:47.7]} 46. Kb3 {[%clk 0:00:40.4]} 46... Kb5
{[%clk 0:00:47.8]} 47. Nf3 {[%clk 0:00:32.2]} 47... a4+ {[%clk 0:00:48.4]} 48.
Kc2 {[%clk 0:00:32.9]} 48... Kc4 {[%clk 0:00:50.3]} 49. Nd2+ {[%clk 0:00:32.9]}
49... Kd4 {[%clk 0:00:51.3]} 50. Nf3+ {[%clk 0:00:33.7]} 50... Ke3 {[%clk
0:00:52]} 51. Ne5 {[%clk 0:00:33.8]} 51... Kd4 {[%clk 0:00:52.6]} 52. Nc6+
{[%clk 0:00:34]} 52... Kc5 {[%clk 0:00:53.6]} 53. Ne5 {[%clk 0:00:34.1]} 53...
Kd4 {[%clk 0:00:54.7]} 54. Nc6+ {[%clk 0:00:34.1]} 54... Kc5 {[%clk 0:00:55.5]}
55. Ne5 {[%clk 0:00:34.5]} 1/2-1/2